Workbook

Sheet жен люб. с доп
C1: Открытый Чемпионат Рязанской области по жимовому двоеборью 1 марта 2014 года на 15 февраля 2014 года
C3: Женщины Дивизион Любители с допинг контролем
A4: Место | B4: В/К | C4: ФИО | D4: Город | E4: Дата Рождения | F4: Возрастная категория | G4: Вес | H4: ЖИМ ЛЕЖА | M4: Вес штанги | N4: II упр-е жим лежа | P4: КГ | Q4: Общее кол-во баллов | R4: Абсолютное первенство (места)
H5: 1 | I5: 2 | J5: 3 | K5: Рез-тат | L5: баллы | N5: результат | O5: баллы
A6: 1 | B6: 70 | C6: Мазавина Елена | E6: 1979-06-03 | G6: 64.1 | H6: 75 | I6: 77.5 | J6: 80 | K6: 80 | L6: 20 | M6: 70 | N6: 5 | O6: 20 | Q6: =SUM(L6,O6) -> 40
A7: 0 | B7: 90 | C7: Кувшинова Янина | E7: 1986-09-18 | G7: 93 | H7: 77,5- | I7: 77,5- | J7: 77,5- | K7: 0 | L7: 0 | M7: 50 | N7: 22 | P7: =PRODUCT(M7,N7) -> 1100 | Q7: =SUM(L7,O7) -> 0
A8: 1 | B8: 90 | C8: Каспер Лела | E8: 1984-06-22 | G8: 85 | H8: 82.5 | I8: 85 | J8: 87,5- | K8: 85 | L8: 20 | M8: 45 | N8: 32 | O8: 20 | P8: =PRODUCT(M8,N8) -> 1440 | Q8: =SUM(L8,O8) -> 40
A9: 1 | B9: 90+ | C9: Новожилова Лилия | E9: 1980г. | G9: 113.7 | H9: 90 | I9: 95 | J9: 100 | K9: 100 | L9: 20 | M9: 50 | N9: 33 | O9: 20 | Q9: 40

Sheet Муж.60,70 люб.доп
C1: Мужчины Дивизион Любители с допинг контролем
D3: Весовая категория 60-70 кг.
A4: Место | B4: В/К | C4: ФИО | D4: Город | E4: Дата Рождения | F4: Возрастная категория | G4: Вес | H4: ЖИМ ЛЕЖА | M4: Вес штанги | N4: II упр-е жим лежа | P4: КГ | Q4: Общее кол-во баллов | R4: Абсолютное первенство (места)
H5: 1 | I5: 2 | J5: 3 | K5: Рез-тат | L5: баллы | N5: результат | O5: баллы
A6: 1 | B6: 60 | C6: Нефедов Дмитрий | G6: 59.6 | H6: 87.5 | I6: 92.5 | J6: 100- | K6: 92.5 | L6: 20 | M6: 60 | N6: 17 | O6: 20 | P6: =PRODUCT(M6,N6) -> 1020 | Q6: =SUM(L6,O6) -> 40
A7: 3 | B7: 70 | C7: Кунашев Аскерби | G7: 65.9 | H7: 90 | I7: 100- | J7: 100- | K7: 90 | L7: 16 | M7: 70 | N7: 14 | O7: 16 | P7: =PRODUCT(M7,N7) -> 980 | Q7: =SUM(L7,O7) -> 32
A8: 1 | B8: 70 | C8: Митрохин Роман | G8: 69.2 | H8: 120 | I8: 125 | J8: 127,5- | K8: 125 | L8: 18 | M8: 70 | N8: 27 | O8: 20 | P8: =PRODUCT(M8,N8) -> 1890 | Q8: =SUM(L8,O8) -> 38
A9: 2 | B9: 70 | C9: Чуриков Илья | G9: 70 | H9: 125 | I9: 130- | J9: 130 | K9: 130 | L9: 20 | M9: 70 | N9: 27 | O9: 18 | Q9: 38

Sheet Муж.80 люб. с доп
C2: Мужчины Дивизион Любители с допинг контролем
D4: Весовая категория до 80 кг
A6: Место | B6: В/К | C6: ФИО | D6: Город | E6: Дата Рождения | F6: Возрастная категория | G6: Вес | H6: ЖИМ ЛЕЖА | M6: Вес штанги | N6: II упр-е жим лежа | P6: КГ | Q6: Общее кол-во баллов | R6: Абсолютное первенство (места)
H7: 1 | I7: 2 | J7: 3 | K7: Рез-тат | L7: баллы | N7: результат | O7: баллы
A8: 1 | B8: 80 | C8: Астахов Александр | G8: 78 | H8: 125 | I8: 132.5 | J8: 140- | K8: 132.5 | L8: 20 | M8: 80 | N8: 19 | O8: 20 | P8: =PRODUCT(M8,N8) -> 1520 | Q8: =SUM(L8,O8) -> 40
A9: 2 | B9: 80 | C9: Трусихин Андрей | G9: 73.2 | H9: 107.5 | I9: 112.5 | J9: 115- | K9: 112.5 | L9: 18 | M9: 80 | N9: 13 | O9: 18 | P9: 1040 | Q9: 36

Sheet Муж.90 люб.с доп
D2: Мужчины Дивизион Любители с допинг контролем
E4: Весовая категория до 90 кг.
A6: Место | B6: В/К | C6: ФИО | D6: Город | E6: Дата Рождения | F6: Возрастная категория | G6: Вес | H6: ЖИМ ЛЕЖА | M6: Вес штанги | N6: II упр-е жим лежа | P6: КГ | Q6: Общее кол-во баллов | R6: Абсолютное первенство (места)
H7: 1 | I7: 2 | J7: 3 | K7: Рез-тат | L7: баллы | N7: результат | O7: баллы
A8: 3 | B8: 90 | C8: Терёшкин Юрий | G8: 89.5 | H8: 130 | I8: 140 | J8: 145- | K8: 140 | L8: 18 | M8: 90 | N8: 19 | O8: 16 | P8: =PRODUCT(M8,N8) -> 1710 | Q8: =SUM(L8,O8) -> 34
A9: 1 | B9: 90 | C9: Рысенков Павел | G9: 89.3 | H9: 145 | I9: 155- | J9: 155 | K9: 155 | L9: 20 | M9: 90 | N9: 19 | O9: 18 | P9: 1710 | Q9: 38
A10: 2 | B10: 90 | C10: Темиров Максим | G10: 87 | H10: 132.5 | I10: 135 | J10: 137.5 | K10: 137.5 | L10: 16 | M10: 90 | N10: 21 | O10: 20 | P10: 1890 | Q10: 36

Sheet Муж.люб.100,120с доп.
C2: Мужчины Дивизион Любители с допинг контролем
D3: Весовая категория 100-110-120
A4: Место | B4: В/К | C4: ФИО | D4: Город | E4: Дата Рождения | F4: Возрастная категория | G4: Вес | H4: ЖИМ ЛЕЖА | M4: Вес штанги | N4: II упр-е жим лежа | P4: КГ | Q4: Общее кол-во баллов | R4: Абсолютное первенство (места)
H5: 1 | I5: 2 | J5: 3 | K5: Рез-тат | L5: баллы | N5: результат | O5: баллы
A6: 1 | B6: 100 | C6: Васильев Дмитрий | G6: 93.3 | H6: 150 | I6: 155 | J6: 162,5- | K6: 155 | L6: 20 | M6: 100 | N6: 24 | O6: 20 | P6: =PRODUCT(M6,N6) -> 2400 | Q6: =SUM(L6,O6) -> 40
A7: 2 | B7: 100 | C7: Петров Евгений | G7: 97.8 | H7: 135 | I7: 140 | J7: 142.5 | K7: 142.5 | L7: 18 | M7: 100 | N7: 15 | O7: 18 | P7: 1500 | Q7: 36
A8: 1 | B8: 120 | C8: Горячев Андрей | G8: 115.8 | H8: 160 | I8: 167.5 | J8: 180- | K8: 167.5 | L8: 20 | M8: 120 | N8: 16 | O8: 20 | P8: 1920 | Q8: 40

Sheet Муж.люб.70
C2: Мужчины Дивизион Любители
D4: Весовая категория до 70 кг
A6: Место | B6: В/К | C6: ФИО | D6: Город | E6: Дата Рождения | F6: Возрастная категория | G6: Вес | H6: ЖИМ ЛЕЖА | M6: Вес штанги | N6: II упр-е жим лежа | P6: КГ | Q6: Общее кол-во баллов | R6: Абсолютное первенство (места)
H7: 1 | I7: 2 | J7: 3 | K7: Рез-тат | L7: баллы | N7: результат | O7: баллы
A8: 1 | B8: 70 | C8: Шишкин Сергей | E8: 1987-05-21 | G8: 68.3 | H8: 90 | I8: 97.5 | J8: 100 | K8: 100 | L8: 18 | M8: 70 | N8: 18 | O8: 20 | P8: =PRODUCT(M8,N8) -> 1260 | Q8: =SUM(L8,O8) -> 38
A9: 3 | B9: 70 | C9: Шишкин Сергей | E9: 1993-07-25 | G9: 68.5 | H9: 95 | I9: 97,5- | J9: 97,5- | K9: 95 | L9: 16 | M9: 70 | N9: 14 | O9: 16 | P9: =PRODUCT(M9,N9) -> 980 | Q9: =SUM(L9,O9) -> 32
A10: 4 | B10: 70 | C10: Астахов Алесей | G10: 68.3 | H10: 80- | I10: 80- | J10: 0 | K10: 0 | L10: 0 | M10: 70 | N10: 4 | O10: 14 | P10: =PRODUCT(M10,N10) -> 280 | Q10: =SUM(L10,O10) -> 14
A11: 2 | B11: 70 | C11: Соколовский Борис | E11: 1961г. | G11: 69.5 | H11: 100 | I11: 105 | J11: 105 | K11: 105 | L11: 20 | M11: 70 | N11: 16 | O11: 18 | Q11: 38

Sheet Муж.люб.80
C3: Мужчины Дивизион Любители
D5: Весовая категория до 80 кг
A6: Место | B6: В/К | C6: ФИО | D6: Город | E6: Дата Рождения | F6: Возрастная категория | G6: Вес | H6: ЖИМ ЛЕЖА | M6: Вес штанги | N6: II упр-е жим лежа | P6: КГ | Q6: Общее кол-во баллов | R6: Абсолютное первенство (места)
H7: 1 | I7: 2 | J7: 3 | K7: Рез-тат | L7: баллы | N7: результат | O7: баллы
A8: 4 | B8: 80 | C8: Карпушин Роман | E8: 1990-07-18 | G8: 77.5 | H8: 115 | I8: 120 | J8: 125 | K8: 125 | L8: 16 | M8: 80 | N8: 21 | O8: 14 | P8: =PRODUCT(M8,N8) -> 1680 | Q8: =SUM(L8,O8) -> 30
A9: 3 | B9: 80 | C9: Бурнашев Александр | G9: 78.6 | H9: 115 | I9: 120 | J9: 125 | K9: 125 | L9: 14 | M9: 80 | N9: 24 | O9: 18 | P9: 1920 | Q9: 32
A10: 5 | B10: 80 | C10: Блохин Александр | G10: 73 | H10: 97.5 | I10: 100- | J10: 100- | K10: 97.5 | L10: 12 | M10: 80 | N10: 14 | O10: 12 | P10: 1120 | Q10: 24
A11: 2 | B11: 80 | C11: Ольхов Олег | E11: 1989г. | G11: 78.9 | H11: 140- | I11: 140 | J11: 145- | K11: 140 | L11: 20 | M11: 80 | N11: 22 | O11: 16 | P11: 1760 | Q11: 36
A12: 1 | B12: 80 | C12: Способов Павел | G12: 79 | H12: 130 | I12: 135 | J12: 140 | K12: 140 | L12: 18 | M12: 80 | N12: 26 | O12: 20 | P12: 2080 | Q12: 38

Sheet Муж.люб.90
D2: Мужчины Дивизион Любители
E4: Весовая категория до 90 кг
A6: Место | B6: В/К | C6: ФИО | D6: Город | E6: Дата Рождения | F6: Возрастная категория | G6: Вес | H6: ЖИМ ЛЕЖА | M6: Вес штанги | N6: II упр-е жим лежа | P6: КГ | Q6: Общее кол-во баллов | R6: Абсолютное первенство (места)
H7: 1 | I7: 2 | J7: 3 | K7: Рез-тат | L7: баллы | N7: результат | O7: баллы
A8: 2 | B8: 90 | C8: Любимский Семён | G8: 86.3 | H8: 165 | I8: 170 | J8: 175 | K8: 175 | L8: 20 | M8: 90 | N8: 22 | O8: 18 | P8: =PRODUCT(M8,N8) -> 1980 | Q8: =SUM(L8,O8) -> 38
A9: 3 | B9: 90 | C9: Дмитриев Дмитрий | G9: 86.4 | H9: 122,5- | I9: 130 | J9: 137 | K9: 137 | L9: 16 | M9: 90 | N9: 20 | O9: 16 | P9: =PRODUCT(M9,N9) -> 1800 | Q9: =SUM(L9,O9) -> 32
A10: 4 | B10: 90 | C10: Таран Сергей | G10: 87.4 | H10: 130 | I10: 140- | J10: 140- | K10: 130 | L10: 14 | M10: 90 | N10: 18 | O10: 14 | P10: =PRODUCT(M10,N10) -> 1620 | Q10: =SUM(L9,O9) -> 32
A11: 1 | B11: 90 | C11: Силушин Павел | G11: 80.6 | H11: 172.5 | I11: 0 | J11: 0 | K11: 172.5 | L11: 18 | M11: 90 | N11: 40 | O11: 20 | P11: =PRODUCT(M11,N11) -> 3600 | Q11: 38

Sheet Муж.люб.100
C2: Мужчины Дивизион Любители
D4: Весовая категория до 100 кг
A6: Место | B6: В/К | C6: ФИО | D6: Город | E6: Дата Рождения | F6: Возрастная категория | G6: Вес | H6: ЖИМ ЛЕЖА | M6: Вес штанги | N6: II упр-е жим лежа | P6: КГ | Q6: Общее кол-во баллов | R6: Абсолютное первенство (места)
H7: 1 | I7: 2 | J7: 3 | K7: Рез-тат | L7: баллы | N7: результат | O7: баллы
A8: 2 | B8: 100 | C8: Есаков Алексей | F8: 1977-11-13 | G8: 99.6 | H8: 185 | I8: 187.5 | J8: 190 | K8: 190 | L8: 18 | M8: 100 | N8: 28 | O8: 18 | P8: =PRODUCT(M8,N8) -> 2800 | Q8: =SUM(L8,O8) -> 36
A9: 9 | B9: 100 | C9: Каверин Владислав | G9: 91.6 | H9: 125 | I9: 130 | J9: 135- | K9: 130 | L9: 4 | M9: 100 | N9: 12 | O9: 4 | P9: 1200 | Q9: 8
A10: 3 | B10: 100 | C10: Кондрашов Алексей | G10: 99.1 | H10: 155 | I10: 160 | J10: 0 | K10: 160 | L10: 16 | M10: 100 | N10: 17 | O10: 12 | P10: 1700 | Q10: 28
A11: 7 | B11: 100 | C11: Кошмал Денис | G11: 94.9 | H11: 140 | I11: 150 | J11: 155 | K11: 155 | L11: 14 | M11: 100 | N11: 13 | O11: 6 | P11: 1300 | Q11: 20
A12: 8 | B12: 100 | C12: Шаменков Олег | G12: 97.2 | H12: 130 | I12: 135 | J12: 0 | K12: 135 | L12: 6 | M12: 100 | N12: 15 | O12: 8 | P12: 1500 | Q12: 14
A13: 5 | B13: 100 | C13: Артемов Кирилл | G13: 96 | H13: 130 | I13: 140 | J13: 150- | K13: 140 | L13: 8 | M13: 100 | N13: 18 | O13: 14 | P13: 1800 | Q13: 22
A14: 4 | B14: 100 | C14: Буравлев Александр | G14: 99.4 | H14: 150 | I14: 152,5- | J14: 0 | K14: 150 | L14: 12 | M14: 100 | N14: 22 | O14: 16 | P14: 2200 | Q14: 28
A15: 1 | B15: 100 | C15: Пасечник Константин | G15: 98 | H15: 185 | I15: 190 | J15: 192.5 | K15: 192.5 | L15: 20 | M15: 100 | N15: 34 | O15: 20 | P15: 3400 | Q15: 40
A16: 6 | B16: 100 | C16: Даркин Денис | G16: 92.1 | H16: 120- | I16: 140 | J16: 140 | K16: 140 | L16: 10 | M16: 100 | N16: 15 | O16: 10 | P16: 1500 | Q16: 20

Sheet муж.люб.110
D2: Мужчины Дивизион Любители
D4: Весовая категория до 110 кг
A6: Место | B6: В/К | C6: ФИО | D6: Город | E6: Дата Рождения | F6: Возрастная категория | G6: Вес | H6: ЖИМ ЛЕЖА | M6: Вес штанги | N6: II упр-е жим лежа | P6: КГ | Q6: Общее кол-во баллов | R6: Абсолютное первенство (места)
H7: 1 | I7: 2 | J7: 3 | K7: Рез-тат | L7: баллы | N7: результат | O7: баллы
A8: 2 | B8: 110 | C8: Никонов Александр | G8: 102 | H8: 160 | I8: 170 | J8: 180- | K8: 170 | L8: 18 | M8: 110 | N8: 18 | O8: 16 | P8: =PRODUCT(M8,N8) -> 1980 | Q8: =SUM(L8,O8) -> 34
A9: 1 | B9: 110 | C9: Суставов Юрий | G9: 104.5 | H9: 170 | I9: 180 | J9: 190 | K9: 190 | L9: 20 | M9: 110 | N9: 26 | O9: 20 | P9: =PRODUCT(M9,N9) -> 2860 | Q9: =SUM(L9,O9) -> 40
A10: 4 | B10: 110 | C10: Гундин Александр | G10: 100.7 | H10: 145 | I10: 155 | J10: 0 | K10: 155 | L10: 16 | M10: 100 | N10: 17 | O10: 14 | P10: 1700 | Q10: 30
A11: 3 | B11: 110 | C11: Епифанов дмитрий | G11: 109.3 | H11: 150 | I11: 0 | J11: 0 | K11: 150 | L11: 14 | M11: 110 | N11: 23 | O11: 18 | Q11: 32

Sheet Муж.люб.120
C3: Мужчины Дивизион Любители
C4: Весовая категория до 120 кг.
A6: Место | B6: В/К | C6: ФИО | D6: Город | E6: Дата Рождения | F6: Возрастная категория | G6: Вес | H6: ЖИМ ЛЕЖА | M6: Вес штанги | N6: II упр-е жим лежа | P6: КГ | Q6: Общее кол-во баллов | R6: Абсолютное первенство (места)
H7: 1 | I7: 2 | J7: 3 | K7: Рез-тат | L7: баллы | N7: результат | O7: баллы
A8: 1 | B8: 120 | C8: Илларионов Михаил | G8: 117.6 | H8: 160 | I8: 180 | J8: 190- | K8: 180 | L8: 20 | M8: 120 | N8: 17 | O8: 20 | P8: =PRODUCT(M8,N8) -> 2040 | Q8: =SUM(L8,O8) -> 40

Sheet муж.проф.80,100
C2: Мужчины Дивизион Профессионалы
C4: Весовая категория до 100 кг
A7: Место | B7: В/К | C7: ФИО | D7: Город | E7: Дата Рождения | F7: Возрастная категория | G7: Вес | H7: ЖИМ ЛЕЖА | M7: Вес штанги | N7: II упр-е жим лежа | P7: КГ | Q7: Общее кол-во баллов | R7: Абсолютное первенство (места)
H8: 1 | I8: 2 | J8: 3 | K8: Рез-тат | L8: баллы | N8: результат | O8: баллы
B9: 80 | P9: =PRODUCT(M9,N9) -> 0 | Q9: =SUM(L10,O10) -> 0
B10: 80 | P10: =PRODUCT(M10,N10) -> 0 | Q10: =SUM(L10,O10) -> 0
B11: 100 | P11: =PRODUCT(M11,N11) -> 0 | Q11: =SUM(L11,O11) -> 0
A12: 1 | B12: 100 | C12: Щенников Андрей | E12: 1974-10-14 | G12: 99.9 | H12: 205 | I12: 212.5 | J12: 217.5 | K12: 217.5 | L12: 20 | M12: 130 | N12: 17 | O12: 20 | P12: =PRODUCT(M12,N12) -> 2210 | Q12: =SUM(L12,O12) -> 40

Sheet Муж.проф.110,130
D2: Мужчины Дивизион Профессионалы
E4: Весовая категория 110,130 кг.
A7: Место | B7: В/К | C7: ФИО | D7: Город | E7: Дата Рождения | F7: Возрастная категория | G7: Вес | H7: ЖИМ ЛЕЖА | M7: Вес штанги | N7: II упр-е жим лежа | P7: КГ | Q7: Общее кол-во баллов | R7: Абсолютное первенство (места)
H8: 1 | I8: 2 | J8: 3 | K8: Рез-тат | L8: баллы | N8: результат | O8: баллы
B9: 110 | M9: 110 | P9: =PRODUCT(M9,N9) -> 110 | Q9: =SUM(L9,O9) -> 0
B10: 130 | M10: 130 | P10: =PRODUCT(M10,N10) -> 130 | Q10: =SUM(L10,O10) -> 0

Sheet Муж.проф.120
C2: Мужчины Дивизион Профессионалы
C4: Весовая категория до 120 кг.
A6: Место | B6: В/К | C6: ФИО | D6: Город | E6: Дата Рождения | F6: Возрастная категория | G6: Вес | H6: ЖИМ ЛЕЖА | M6: Вес штанги | N6: II упр-е жим лежа | P6: КГ | Q6: Общее кол-во баллов | R6: Абсолютное первенство (места)
H7: 1 | I7: 2 | J7: 3 | K7: Рез-тат | L7: баллы | N7: результат | O7: баллы
B8: 120 | E8: 1988-08-25 | P8: =PRODUCT(M8,N8) -> 0 | Q8: =SUM(L8,O8) -> 0
A9: 1 | B9: 120 | C9: Васьков Борис | E9: 1988-08-25 | F9: 112.9 | G9: 112.9 | H9: 190 | I9: 200 | J9: 205- | K9: 200 | L9: 20 | M9: 150 | N9: 12 | O9: 20 | P9: =PRODUCT(M9,N9) -> 1800 | Q9: =SUM(L9,O9) -> 40
B10: 120 | P10: =PRODUCT(M10,N10) -> 0 | Q10: =SUM(L10,O10) -> 0

Sheet Софт экипир.90,100
D2: Дивизион Софт экипировки
A5: Место | B5: В/К | C5: ФИО | D5: Город | E5: Дата Рождения | F5: Возрастная категория | G5: Вес | H5: ЖИМ ЛЕЖА | M5: Вес штанги | N5: II упр-е жим лежа | P5: КГ | Q5: Общее кол-во баллов | R5: Абсолютное первенство (места)
H6: 1 | I6: 2 | J6: 3 | K6: Рез-тат | L6: баллы | N6: результат | O6: баллы
A7: 1 | B7: 90 | C7: Машков Валерий | E7: 1984-02-22 | F7: 1984-02-22 | G7: 86.7 | H7: 190- | I7: 190- | J7: 190 | K7: 190 | L7: 20 | M7: 135 | N7: 10 | O7: 20 | P7: =PRODUCT(M7,N7) -> 1350 | Q7: =SUM(L7,O7) -> 40
A8: 1 | B8: 100 | C8: Глухов Алексей | E8: 1986-08-22 | F8: 1986-08-22 | G8: 92.8 | H8: 205 | I8: 210 | J8: 215 | K8: 215 | L8: 20 | M8: 150 | N8: 20 | O8: 20 | P8: =PRODUCT(M8,N8) -> 3000 | Q8: =SUM(L8,O8) -> 40

Sheet Софт экипир.120,130
C3: Дивизион Софт экипировки
A5: Место | B5: В/К | C5: ФИО | D5: Город | E5: Дата Рождения | F5: Возрастная категория | G5: Вес | H5: ЖИМ ЛЕЖА | M5: Вес штанги | N5: II упр-е жим лежа | P5: КГ | Q5: Общее кол-во баллов | R5: Абсолютное первенство (места)
H6: 1 | I6: 2 | J6: 3 | K6: Рез-тат | L6: баллы | N6: результат | O6: баллы
A7: 1 | B7: 120 | C7: Залуцкий Роман | E7: 1979-01-31 | G7: 120 | H7: 265 | I7: 275 | J7: 280 | K7: 280 | L7: 20 | M7: 180 | N7: 26 | O7: 20 | P7: =PRODUCT(M7,N7) -> 4680 | Q7: =SUM(L7,O7) -> 40
A8: 2 | B8: 120 | C8: Наторкин Максим | E8: 1986-07-23 | G8: 111.4 | H8: 180 | I8: 190 | J8: 200 | K8: 190 | L8: 18 | M8: 180 | N8: 12 | O8: 18 | P8: =PRODUCT(M8,N8) -> 2160 | Q8: =SUM(L8,O8) -> 36
A9: 1 | B9: 130 | C9: Цуканов Максим | E9: 1980-12-09 | G9: 146.4 | H9: 280- | I9: 280 | J9: 290- | K9: 280 | L9: 18 | M9: 205 | N9: 15 | O9: 20 | P9: =PRODUCT(M9,N9) -> 3075 | Q9: 40

Sheet Военный жим
C2: Дивизион военный жим
A5: Место | B5: В/К | C5: ФИО | D5: Город | E5: Дата Рождения | F5: Возрастная категория | G5: Вес | H5: ЖИМ ЛЕЖА | M5: Вес штанги | N5: II упр-е жим лежа | P5: КГ | Q5: Общее кол-во баллов | R5: Абсолютное первенство (места)
H6: 1 | I6: 2 | J6: 3 | K6: Рез-тат | L6: баллы | N6: результат | O6: баллы
A7: 1 | B7: 90 | C7: Шемет Сергей | G7: 88.8 | H7: 125 | I7: 132,5- | J7: 132.5 | K7: 132.5 | L7: 20 | M7: 100 | N7: 13 | O7: 20 | P7: =PRODUCT(M7,N7) -> 1300 | Q7: =SUM(L7,O7) -> 40
A8: 2 | B8: 120 | C8: Горячев Андрей | G8: 115.8 | H8: 140 | I8: 155 | J8: 162,5- | K8: 155 | L8: 18 | M8: 100 | N8: 20 | O8: 18 | P8: =PRODUCT(M8,N8) -> 2000 | Q8: =SUM(L8,O8) -> 36
A9: 1 | B9: 120 | C9: Залуцкий Роман | G9: 120 | H9: 170 | I9: 180 | J9: 190- | K9: 180 | L9: 20 | M9: 100 | N9: 27 | O9: 20 | P9: =PRODUCT(M9,N9) -> 2700 | Q9: =SUM(L9,O9) -> 40
P10: =PRODUCT(M10,N10) -> 0 | Q10: =SUM(L10,O10) -> 0
P11: =PRODUCT(M11,N11) -> 0 | Q11: =SUM(L11,O11) -> 0

Sheet Лист26
